[Event "Szansa Chess Open 2022"]
[Site "Warsaw"]
[Date "2022.09.17"]
[Round "2"]
[White "Lewtak, Damian"]
[Black "Wilczynski, Adam"]
[Result "1-0"]
[ECO "B52"]
[WhiteElo "2386"]
[BlackElo "1516"]
[Annotator "ChessBase"]
[PlyCount "53"]
[EventDate "2022.09.17"]
[EventCountry "POL"]
[SourceTitle "playchess.com"]
[Source "ChessBase"]
[SourceQuality "1"]
[TimeControl "900+10"]

1. e4 {[%emt 0:00:01]} c5 {[%emt 0:00:01]} 2. Nf3 {[%emt 0:00:01]} d6 {[%emt 0:00:01]} 3. Bb5+ {[%emt 0:00:03]} Bd7 {[%emt 0:00:01]} 4. c4 {[%emt 0:00:02]} Nf6 {[%emt 0:00:04]} 5. Nc3 {[%emt 0:00:02]} g6 {[%emt 0:00:07]} 6. d4 {[%emt 0:00:19]} cxd4 {[%emt 0:00:06]} 7. Nxd4 {[%emt 0:00:02]} Bg7 {[%emt 0:00:02]} 8. O-O {[%emt 0:00:05]} O-O {[%emt 0:00:02]} 9. Bxd7 {[%emt 0:03:09]} Nbxd7 {[%emt 0:00:03]} 10. h3 {[%emt 0:00:06]} Rc8 {[%emt 0:00:15]} 11. b3 {[%emt 0:00:18]} a6 {[%emt 0:00:13]} 12. Be3 {[%emt 0:00:39]} b5 {[%emt 0:00:24]} 13. Rc1 {[%emt 0:03:51]} bxc4 {[%emt 0:00:06]} 14. bxc4 {[%emt 0:00:04]} Rxc4 {[%emt 0:00:10]} 15. Qe2 {[%emt 0:02:50]} Nb6 {[%emt 0:02:16]} 16. Ne6 {[%emt 0:00:50]} fxe6 {[%emt 0:00:11]} 17. Bxb6 {[%emt 0:00:02]} Qc8 {[%emt 0:00:02]} 18. Qd3 {[%emt 0:04:04]} Qc6 {[%emt 0:01:57]} 19. Nd5 {[%emt 0:00:43]} exd5 {[%emt 0:00:03]} 20. exd5 {[%emt 0:00:02]} Qxb6 {[%emt 0:00:19]} 21. Qxc4 {[%emt 0:00:11]} Nh5 {[%emt 0:00:25]} 22. Rb1 {[%emt 0:00:27]} Qa7 {[%emt 0:00:03]} 23. Qc6 {[%emt 0:00:27]} Ng3 {[%emt 0:00:09]} 24. Rb7 {[%emt 0:00:34]} Qd4 {[%emt 0:00:02]} 25. Rfb1 {[%emt 0:00:13]} Qxf2+ {[%emt 0:00:04]} 26. Kh2 {[%emt 0:00:03]} Be5 {[%emt 0:00:16]} 27. Rxe7 {[%emt 0:00:18]} 1-0

[Event "Szansa Chess Open 2022"]
[Site "Warsaw"]
[Date "2022.09.17"]
[Round "2.1"]
[White "Ivanytska, Liudmyla"]
[Black "Gumularz, Szymon"]
[Result "0-1"]
[ECO "C41"]
[WhiteElo "1845"]
[BlackElo "2532"]
[Annotator "ChessBase"]
[PlyCount "102"]
[EventDate "2022.09.17"]
[EventCountry "POL"]
[SourceTitle "playchess.com"]
[Source "ChessBase"]
[SourceQuality "1"]
[TimeControl "900+10"]

1. e4 {[%emt 0:00:03]} e5 {[%emt 0:00:05]} 2. Nf3 {[%emt 0:00:05]} d6 {[%emt 0:00:01]} 3. Bc4 {[%emt 0:00:03]} Nf6 {[%emt 0:00:03]} 4. d3 {[%emt 0:00:01]} Be7 {[%emt 0:00:02]} 5. O-O {[%emt 0:00:03]} O-O {[%emt 0:00:03]} 6. c3 {[%emt 0:00:01]} Nbd7 {[%emt 0:00:11]} 7. Re1 {[%emt 0:00:05]} c6 {[%emt 0:00:05]} 8. Bb3 {[%emt 0:00:08]} b5 {[%emt 0:00:36]} 9. a4 {[%emt 0:00:18]} a5 {[%emt 0:00:19]} 10. d4 {[%emt 0:00:15]} Bb7 {[%emt 0:00:07]} 11. Bc2 {[%emt 0:00:36]} Re8 {[%emt 0:00:09]} 12. Nbd2 {[%emt 0:00:30]} Bf8 {[%emt 0:00:02]} 13. Nf1 {[%emt 0:00:05]} Qc7 {[%emt 0:00:15]} 14. Ng3 {[%emt 0:00:09]} g6 {[%emt 0:00:02]} 15. Bb3 {[%emt 0:00:26]} Bg7 {[%emt 0:00:55]} 16. h4 {[%emt 0:00:08]} Nb6 {[%emt 0:00:46]} 17. h5 {[%emt 0:00:27]} bxa4 {[%emt 0:00:03]} 18. Bxa4 {[%emt 0:00:42]} Nxa4 {[%emt 0:00:02]} 19. Rxa4 {[%emt 0:00:01]} exd4 {[%emt 0:00:13]} 20. cxd4 {[%emt 0:01:16]} c5 {[%emt 0:00:05]} 21. d5 {[%emt 0:00:28]} Bc8 {[%emt 0:00:26]} 22. hxg6 {[%emt 0:00:24]} hxg6 {[%emt 0:00:01]} 23. e5 {[%emt 0:00:32]} dxe5 {[%emt 0:00:06]} 24. d6 {[%emt 0:00:01]} Qb7 {[%emt 0:00:28]} 25. Nxe5 {[%emt 0:00:14]} Be6 {[%emt 0:00:07]} 26. Ra3 {[%emt 0:00:44]} c4 {[%emt 0:00:08]} 27. Nf3 {[%emt 0:00:57]} Bd5 {[%emt 0:00:21]} 28. Rxe8+ {[%emt 0:00:11]} Rxe8 {[%emt 0:00:08]} 29. Rxa5 {[%emt 0:01:25]} Bxf3 {[%emt 0:00:19]} 30. gxf3 {[%emt 0:00:02]} Qb4 {[%emt 0:00:03]} 31. Qd2 {[%emt 0:00:07]} c3 {[%emt 0:00:02]} 32. Qxc3 {[%emt 0:00:52]} Re1+ {[%emt 0:00:08]} 33. Kg2 {[%emt 0:00:18]} Qxc3 {[%emt 0:00:01]} 34. bxc3 {[%emt 0:00:01]} Rxc1 {[%emt 0:00:01]} 35. Ne4 {[%emt 0:00:48]} Nxe4 {[%emt 0:06:35]} 36. d7 {[%emt 0:04:50]} Bf6 {[%emt 0:00:34]} 37. Ra6 {[%emt 0:01:02]} Nc5 {[%emt 0:00:22]} 38. Rxf6 {[%emt 0:00:14]} Nxd7 {[%emt 0:00:01]} 39. Rc6 {[%emt 0:00:01]} Ne5 {[%emt 0:00:08]} 40. Rc8+ {[%emt 0:00:10]} Kg7 {[%emt 0:00:01]} 41. Kg3 {[%emt 0:00:04]} g5 {[%emt 0:00:05]} 42. Kg2 {[%emt 0:00:19]} Nd3 {[%emt 0:00:08]} 43. c4 {[%emt 0:00:14]} Nf4+ {[%emt 0:00:01]} 44. Kh2 {[%emt 0:00:01]} Rf1 {[%emt 0:00:02]} 45. c5 {[%emt 0:00:14]} Rxf2+ {[%emt 0:00:02]} 46. Kg1 {[%emt 0:00:03]} Rxf3 {[%emt 0:00:04]} 47. c6 {[%emt 0:00:09]} Rc3 {[%emt 0:00:05]} 48. Kh1 {[%emt 0:00:15]} Rc2 {[%emt 0:00:06]} 49. Kg1 {[%emt 0:00:10]} g4 {[%emt 0:00:02]} 50. Re8 {[%emt 0:00:16]} g3 {[%emt 0:00:08]} 51. Re1 {[%emt 0:00:03]} Nh3+ {[%emt 0:00:02]} 0-1

[Event "Szansa Chess Open 2022"]
[Site "Warsaw"]
[Date "2022.09.17"]
[Round "2.2"]
[White "Kosakowski, Jakub"]
[Black "Omar, Mohamed"]
[Result "1-0"]
[ECO "B05"]
[WhiteElo "2457"]
[BlackElo "1853"]
[Annotator "ChessBase"]
[PlyCount "45"]
[EventDate "2022.09.17"]
[EventCountry "POL"]
[SourceTitle "playchess.com"]
[Source "ChessBase"]
[SourceQuality "1"]
[TimeControl "900+10"]

1. e4 {[%emt 0:00:05]} Nf6 {[%emt 0:00:02]} 2. e5 {[%emt 0:00:03]} Nd5 {[%emt 0:00:02]} 3. d4 {[%emt 0:00:04]} d6 {[%emt 0:00:02]} 4. Nf3 {[%emt 0:00:04]} Bg4 {[%emt 0:00:05]} 5. Be2 {[%emt 0:00:03]} Nc6 {[%emt 0:00:07]} 6. c4 {[%emt 0:01:16]} Nb6 {[%emt 0:00:02]} 7. exd6 {[%emt 0:02:37]} exd6 {[%emt 0:00:02]} 8. O-O {[%emt 0:00:07]} Be7 {[%emt 0:00:02]} 9. Nbd2 {[%emt 0:00:39]} O-O {[%emt 0:00:38]} 10. h3 {[%emt 0:00:03]} Bf5 {[%emt 0:00:57]} 11. d5 {[%emt 0:00:16]} Nb4 {[%emt 0:01:02]} 12. Nd4 {[%emt 0:00:14]} Bd3 {[%emt 0:01:43]} 13. a3 {[%emt 0:00:27]} Bxe2 {[%emt 0:00:39]} 14. Qxe2 {[%emt 0:00:06]} c5 {[%emt 0:01:02]} 15. Nf5 {[%emt 0:02:55]} Nc2 {[%emt 0:02:16]} 16. Nxe7+ {[%emt 0:00:02]} Kh8 {[%emt 0:00:01]} 17. Rb1 {[%emt 0:00:02]} Nd4 {[%emt 0:00:36]} 18. Qe4 {[%emt 0:00:02]} Re8 {[%emt 0:00:24]} 19. Re1 {[%emt 0:00:02]} f5 {[%emt 0:00:20]} 20. Qh4 {[%emt 0:00:08]} h6 {[%emt 0:04:17]} 21. Nf3 {[%emt 0:00:13]} Nxf3+ {[%emt 0:01:46]} 22. gxf3 {[%emt 0:00:03]} Kh7 {[%emt 0:00:01]} 23. Re6 {[%emt 0:00:02]} 1-0

[Event "Szansa Chess Open 2022"]
[Site "Warsaw"]
[Date "2022.09.17"]
[Round "2.3"]
[White "Gasik, Piotr"]
[Black "Jakubowski, Krzysztof"]
[Result "0-1"]
[ECO "A34"]
[WhiteElo "1956"]
[BlackElo "2466"]
[Annotator "ChessBase"]
[PlyCount "46"]
[EventDate "2022.09.17"]
[EventCountry "POL"]
[SourceTitle "playchess.com"]
[Source "ChessBase"]
[SourceQuality "1"]
[TimeControl "900+10"]

1. c4 {[%emt 0:00:01]} c5 {[%emt 0:00:02]} 2. Nc3 {[%emt 0:00:01]} Nf6 {[%emt 0:00:03]} 3. Nf3 {[%emt 0:00:02]} d5 {[%emt 0:00:02]} 4. cxd5 {[%emt 0:00:02]} Nxd5 {[%emt 0:00:02]} 5. g3 {[%emt 0:00:02]} Nc6 {[%emt 0:00:08]} 6. Bg2 {[%emt 0:00:01]} Nc7 {[%emt 0:00:03]} 7. Qa4 {[%emt 0:00:02]} Bd7 {[%emt 0:00:30]} 8. Qe4 {[%emt 0:00:02]} Ne6 {[%emt 0:02:12]} 9. e3 {[%emt 0:01:42]} g6 {[%emt 0:03:15]} 10. Ne5 {[%emt 0:00:06]} Bg7 {[%emt 0:00:51]} 11. Nxd7 {[%emt 0:00:39]} Qxd7 {[%emt 0:00:04]} 12. O-O {[%emt 0:01:32]} O-O {[%emt 0:00:13]} 13. f4 {[%emt 0:01:31]} Rad8 {[%emt 0:00:39]} 14. f5 {[%emt 0:00:46]} Nc7 {[%emt 0:00:15]} 15. fxg6 {[%emt 0:01:01]} hxg6 {[%emt 0:00:11]} 16. Qc4 {[%emt 0:01:41]} Ne6 {[%emt 0:01:18]} 17. a3 {[%emt 0:01:37]} Ne5 {[%emt 0:00:14]} 18. Qd5 {[%emt 0:00:59]} c4 {[%emt 0:00:17]} 19. Qxb7 {[%emt 0:00:43]} Qxb7 {[%emt 0:00:06]} 20. Bxb7 {[%emt 0:00:03]} Nc5 {[%emt 0:00:02]} 21. Bg2 {[%emt 0:01:33]} Nb3 {[%emt 0:00:02]} 22. Rb1 {[%emt 0:00:18]} Nd3 {[%emt 0:00:03]} 23. Ne2 {[%emt 0:00:17]} Ndxc1 {[%emt 0:00:52]} 0-1

[Event "Szansa Chess Open 2022"]
[Site "Warsaw"]
[Date "2022.09.17"]
[Round "2.4"]
[White "Nasuta, Grzegorz"]
[Black "Kaminski, Jan"]
[Result "1-0"]
[ECO "B51"]
[WhiteElo "2531"]
[BlackElo "1888"]
[Annotator "ChessBase"]
[PlyCount "63"]
[EventDate "2022.09.17"]
[EventCountry "POL"]
[SourceTitle "playchess.com"]
[Source "ChessBase"]
[SourceQuality "1"]
[TimeControl "900+10"]

1. e4 {[%emt 0:00:21]} c5 {[%emt 0:00:01]} 2. Nf3 {[%emt 0:00:02]} d6 {[%emt 0:00:02]} 3. Bb5+ {[%emt 0:00:02]} Nd7 {[%emt 0:00:01]} 4. a4 {[%emt 0:00:05]} Ngf6 {[%emt 0:00:03]} 5. Nc3 {[%emt 0:00:01]} e6 {[%emt 0:00:22]} 6. d4 {[%emt 0:00:07]} cxd4 {[%emt 0:00:04]} 7. Qxd4 {[%emt 0:00:05]} a6 {[%emt 0:00:07]} 8. Be2 {[%emt 0:00:02]} Be7 {[%emt 0:00:18]} 9. O-O {[%emt 0:00:02]} O-O {[%emt 0:00:09]} 10. Rd1 {[%emt 0:00:15]} Qc7 {[%emt 0:00:03]} 11. a5 {[%emt 0:01:02]} Ne5 {[%emt 0:00:39]} 12. Nxe5 {[%emt 0:03:27]} dxe5 {[%emt 0:00:01]} 13. Qc4 {[%emt 0:00:01]} Qxc4 {[%emt 0:00:59]} 14. Bxc4 {[%emt 0:00:01]} Bd7 {[%emt 0:00:13]} 15. f3 {[%emt 0:00:07]} Rac8 {[%emt 0:00:21]} 16. Bd3 {[%emt 0:00:29]} Bc5+ {[%emt 0:00:56]} 17. Kf1 {[%emt 0:00:01]} Rfd8 {[%emt 0:00:12]} 18. Ke2 {[%emt 0:01:47]} Bc6 {[%emt 0:00:15]} 19. Na4 {[%emt 0:00:12]} Ba7 {[%emt 0:02:11]} 20. Be3 {[%emt 0:02:14]} Bxe3 {[%emt 0:00:08]} 21. Kxe3 {[%emt 0:00:02]} Bxa4 {[%emt 0:00:12]} 22. Rxa4 {[%emt 0:00:02]} Nd7 {[%emt 0:00:16]} 23. Rb4 {[%emt 0:00:59]} Nc5 {[%emt 0:00:40]} 24. Be2 {[%emt 0:00:01]} Rxd1 {[%emt 0:01:03]} 25. Bxd1 {[%emt 0:00:02]} Kf8 {[%emt 0:00:33]} 26. Rc4 {[%emt 0:00:02]} Rc6 {[%emt 0:00:06]} 27. Be2 {[%emt 0:00:10]} Ke7 {[%emt 0:01:18]} 28. b4 {[%emt 0:00:02]} Nd7 {[%emt 0:01:20]} 29. Rxc6 {[%emt 0:00:01]} bxc6 {[%emt 0:00:02]} 30. Bxa6 {[%emt 0:00:01]} Kd6 {[%emt 0:00:10]} 31. Bc8 {[%emt 0:01:08]} Nb8 {[%emt 0:00:08]} 32. a6 {[%emt 0:00:02]} 1-0

[Event "Szansa Chess Open 2022"]
[Site "Warsaw"]
[Date "2022.09.17"]
[Round "2.5"]
[White "Kozak, Antoni"]
[Black "Niezhentsev, Kyrylo"]
[Result "1-0"]
[ECO "A22"]
[WhiteElo "2434"]
[BlackElo "2009"]
[Annotator "ChessBase"]
[PlyCount "59"]
[EventDate "2022.09.17"]
[EventCountry "POL"]
[SourceTitle "playchess.com"]
[Source "ChessBase"]
[SourceQuality "1"]
[TimeControl "900+10"]

1. c4 {[%emt 0:00:01]} e5 {[%emt 0:00:00]} 2. Nc3 {[%emt 0:00:01]} Nf6 {[%emt 0:00:01]} 3. g3 {[%emt 0:00:01]} d5 {[%emt 0:00:01]} 4. cxd5 {[%emt 0:00:05]} Nxd5 {[%emt 0:00:03]} 5. Bg2 {[%emt 0:00:08]} Nb6 {[%emt 0:00:01]} 6. e3 {[%emt 0:00:01]} Nc6 {[%emt 0:00:07]} 7. a3 {[%emt 0:00:09]} Be7 {[%emt 0:00:09]} 8. Nge2 {[%emt 0:00:03]} Be6 {[%emt 0:00:16]} 9. O-O {[%emt 0:00:05]} O-O {[%emt 0:00:02]} 10. f4 {[%emt 0:00:01]} exf4 {[%emt 0:01:55]} 11. Nxf4 {[%emt 0:00:02]} Bc4 {[%emt 0:00:15]} 12. d3 {[%emt 0:00:01]} Ba6 {[%emt 0:00:02]} 13. b4 {[%emt 0:00:00]} Bf6 {[%emt 0:00:31]} 14. Bb2 {[%emt 0:00:01]} Re8 {[%emt 0:01:01]} 15. Qb1 {[%emt 0:01:53]} Bxc3 {[%emt 0:00:56]} 16. Bxc3 {[%emt 0:00:01]} Bb5 {[%emt 0:00:01]} 17. Qb3 {[%emt 0:00:47]} Ba4 {[%emt 0:03:41]} 18. Qa2 {[%emt 0:00:19]} Qe7 {[%emt 0:00:28]} 19. Nh5 {[%emt 0:00:07]} Qxe3+ {[%emt 0:00:42]} 20. Kh1 {[%emt 0:00:01]} Qe6 {[%emt 0:00:04]} 21. Bxg7 {[%emt 0:00:05]} Qxa2 {[%emt 0:00:23]} 22. Rxa2 {[%emt 0:00:01]} Nd7 {[%emt 0:00:12]} 23. Bd5 {[%emt 0:00:09]} Nd8 {[%emt 0:00:02]} 24. Kg1 {[%emt 0:00:20]} Bc6 {[%emt 0:00:09]} 25. Bb3 {[%emt 0:00:19]} a5 {[%emt 0:00:28]} 26. Raf2 {[%emt 0:00:01]} Ne6 {[%emt 0:01:01]} 27. Rxf7 {[%emt 0:00:03]} axb4 {[%emt 0:00:03]} 28. axb4 Rad8 {[%emt 0:00:23]} 29. Bc3 {[%emt 0:00:33]} Ra8 {[%emt 0:00:34]} 30. Rg7+ {[%emt 0:00:01]} 1-0

[Event "Szansa Chess Open 2022"]
[Site "Warsaw"]
[Date "2022.09.17"]
[Round "2.6"]
[White "Hryszkiewicz, Michal"]
[Black "Nguyen, Piotr"]
[Result "0-1"]
[ECO "A41"]
[WhiteElo "1815"]
[BlackElo "2421"]
[Annotator "ChessBase"]
[PlyCount "59"]
[EventDate "2022.09.17"]
[EventCountry "POL"]
[SourceTitle "playchess.com"]
[Source "ChessBase"]
[SourceQuality "1"]
[TimeControl "900+10"]

1. d4 {[%emt 0:00:01]} d6 {[%emt 0:00:03]} 2. Bf4 {[%emt 0:00:02]} g6 {[%emt 0:00:02]} 3. Nc3 {[%emt 0:00:03]} Bg7 {[%emt 0:00:02]} 4. Qd2 {[%emt 0:00:01]} e5 {[%emt 0:00:09]} 5. dxe5 {[%emt 0:00:05]} dxe5 {[%emt 0:00:02]} 6. Qxd8+ {[%emt 0:00:04]} Kxd8 {[%emt 0:00:02]} 7. O-O-O+ {[%emt 0:00:20]} Nd7 {[%emt 0:00:02]} 8. Bg3 {[%emt 0:01:16]} c6 {[%emt 0:00:43]} 9. f3 {[%emt 0:00:35]} Kc7 {[%emt 0:00:50]} 10. Ne4 {[%emt 0:00:15]} Nb6 {[%emt 0:00:43]} 11. Nd6 {[%emt 0:00:53]} Be6 {[%emt 0:00:08]} 12. Nh3 {[%emt 0:01:46]} Ne7 {[%emt 0:01:53]} 13. Ng5 {[%emt 0:01:41]} Bh6 {[%emt 0:03:45]} 14. Bxe5 {[%emt 0:03:55]} Bxg5+ {[%emt 0:00:07]} 15. f4 {[%emt 0:00:10]} Nd7 {[%emt 0:00:26]} 16. Nb5+ {[%emt 0:03:46]} Kb6 {[%emt 0:01:50]} 17. Bc7+ {[%emt 0:00:51]} Kxb5 {[%emt 0:03:10]} 18. e3+ {[%emt 0:00:18]} Kc5 {[%emt 0:00:40]} 19. b4+ {[%emt 0:00:57]} Kxb4 {[%emt 0:00:03]} 20. Bd6+ {[%emt 0:01:00]} Ka5 {[%emt 0:00:12]} 21. Bc7+ {[%emt 0:00:03]} Nb6 {[%emt 0:01:04]} 22. Rd3 {[%emt 0:00:05]} Bf6 {[%emt 0:01:22]} 23. Ra3+ {[%emt 0:00:13]} Kb4 {[%emt 0:00:01]} 24. Bd6+ {[%emt 0:00:02]} c5 {[%emt 0:00:03]} 25. Rd3 {[%emt 0:00:24]} Rac8 {[%emt 0:01:15]} 26. e4 {[%emt 0:00:12]} Rhd8 {[%emt 0:00:18]} 27. e5 {[%emt 0:00:01]} Nf5 {[%emt 0:00:07]} 28. Be2 {[%emt 0:00:25]} Nxd6 {[%emt 0:00:04]} 29. exd6 {[%emt 0:00:05]} c4 {[%emt 0:00:02]} 30. Bf1 0-1

[Event "Szansa Chess Open 2022"]
[Site "Warsaw"]
[Date "2022.09.17"]
[Round "2.7"]
[White "Kowalski, Igor"]
[Black "Wadelek, Karol"]
[Result "1-0"]
[ECO "E11"]
[WhiteElo "2344"]
[BlackElo "1943"]
[Annotator "ChessBase"]
[PlyCount "165"]
[EventDate "2022.09.17"]
[EventCountry "POL"]
[SourceTitle "playchess.com"]
[Source "ChessBase"]
[SourceQuality "1"]
[TimeControl "900+10"]

1. d4 {[%emt 0:00:01]} Nf6 {[%emt 0:00:01]} 2. Nf3 {[%emt 0:00:03]} e6 {[%emt 0:00:03]} 3. c4 {[%emt 0:00:05]} Bb4+ {[%emt 0:00:02]} 4. Nbd2 {[%emt 0:00:07]} O-O {[%emt 0:00:43]} 5. a3 {[%emt 0:00:02]} Bxd2+ {[%emt 0:00:18]} 6. Qxd2 {[%emt 0:00:02]} d6 {[%emt 0:00:01]} 7. e3 {[%emt 0:00:04]} a5 {[%emt 0:00:15]} 8. b3 {[%emt 0:00:04]} Nc6 {[%emt 0:00:05]} 9. Bb2 {[%emt 0:00:02]} Re8 {[%emt 0:00:04]} 10. Bd3 {[%emt 0:01:30]} Qe7 {[%emt 0:00:16]} 11. O-O {[%emt 0:00:06]} e5 {[%emt 0:00:13]} 12. Bc2 {[%emt 0:00:24]} Bg4 {[%emt 0:00:47]} 13. d5 {[%emt 0:00:10]} Nb8 {[%emt 0:00:03]} 14. Ne1 {[%emt 0:00:04]} Nc6 {[%emt 0:00:00]} 15. Nf3 {[%emt 0:00:16]} Nb8 {[%emt 0:00:20]} 16. Ne1 {[%emt 0:00:04]} Nbd7 17. f3 {[%emt 0:00:54]} Bh5 {[%emt 0:00:22]} 18. e4 {[%emt 0:00:06]} Bg6 {[%emt 0:00:16]} 19. Nd3 {[%emt 0:00:07]} b6 {[%emt 0:00:03]} 20. b4 {[%emt 0:00:31]} Rf8 {[%emt 0:01:03]} 21. Bc3 {[%emt 0:00:27]} axb4 {[%emt 0:00:06]} 22. axb4 {[%emt 0:00:01]} h5 {[%emt 0:00:25]} 23. Nf2 {[%emt 0:02:31]} Nh7 {[%emt 0:01:20]} 24. Bd3 {[%emt 0:00:38]} h4 {[%emt 0:01:35]} 25. Qc2 {[%emt 0:01:11]} Ndf6 {[%emt 0:01:40]} 26. Bd2 {[%emt 0:00:11]} Nh5 {[%emt 0:00:10]} 27. Nh3 {[%emt 0:00:09]} Rfc8 {[%emt 0:03:58]} 28. Be3 {[%emt 0:00:46]} Qf6 {[%emt 0:00:24]} 29. Qd2 {[%emt 0:04:06]} Rf8 {[%emt 0:02:26]} 30. Kh1 {[%emt 0:01:36]} Qe7 {[%emt 0:00:11]} 31. Qc2 {[%emt 0:00:43]} Qd7 {[%emt 0:00:41]} 32. c5 {[%emt 0:00:05]} bxc5 {[%emt 0:00:12]} 33. bxc5 {[%emt 0:00:02]} Rxa1 {[%emt 0:00:31]} 34. Rxa1 {[%emt 0:00:01]} f5 {[%emt 0:00:05]} 35. cxd6 {[%emt 0:01:06]} cxd6 {[%emt 0:00:07]} 36. Ra7 {[%emt 0:00:32]} Qd8 {[%emt 0:00:58]} 37. exf5 {[%emt 0:00:34]} Bf7 {[%emt 0:00:12]} 38. Be4 {[%emt 0:00:33]} N5f6 {[%emt 0:00:36]} 39. Qc6 {[%emt 0:00:18]} Nxe4 {[%emt 0:00:18]} 40. fxe4 {[%emt 0:00:02]} Qb8 {[%emt 0:00:01]} 41. Rb7 {[%emt 0:01:06]} Qa8 {[%emt 0:00:05]} 42. Rb1 {[%emt 0:00:09]} Qa2 {[%emt 0:00:07]} 43. Re1 {[%emt 0:00:01]} Nf6 {[%emt 0:00:10]} 44. Nf2 {[%emt 0:00:34]} h3 {[%emt 0:00:18]} 45. gxh3 {[%emt 0:00:06]} Nxe4 {[%emt 0:00:12]} 46. Kg1 {[%emt 0:00:23]} Bxd5 {[%emt 0:00:06]} 47. Qd7 {[%emt 0:00:03]} Nxf2 {[%emt 0:00:44]} 48. Bxf2 {[%emt 0:00:01]} Qb3 {[%emt 0:00:24]} 49. Be3 {[%emt 0:00:17]} Qc2 {[%emt 0:00:08]} 50. Bf2 {[%emt 0:00:06]} Rxf5 {[%emt 0:00:12]} 51. Qd8+ {[%emt 0:00:11]} Rf8 {[%emt 0:00:04]} 52. Qh4 {[%emt 0:00:01]} Qg6+ {[%emt 0:00:10]} 53. Bg3 {[%emt 0:00:05]} Qf6 {[%emt 0:00:17]} 54. Qg4 {[%emt 0:00:09]} Qf3 {[%emt 0:00:06]} 55. Qxf3 {[%emt 0:00:01]} Bxf3 {[%emt 0:00:01]} 56. Kf2 {[%emt 0:00:10]} Bc6+ {[%emt 0:00:13]} 57. Ke2 {[%emt 0:00:08]} Ra8 {[%emt 0:00:09]} 58. Rc1 {[%emt 0:00:03]} Bd7 {[%emt 0:00:08]} 59. h4 {[%emt 0:00:05]} Kf7 {[%emt 0:00:01]} 60. Bf2 {[%emt 0:00:17]} Ke6 {[%emt 0:00:03]} 61. Kf3 {[%emt 0:00:02]} d5 {[%emt 0:00:06]} 62. Re1 {[%emt 0:00:08]} Kf5 {[%emt 0:00:06]} 63. Kg2 {[%emt 0:00:07]} d4 {[%emt 0:00:07]} 64. Bg3 {[%emt 0:00:02]} Bc6+ {[%emt 0:00:09]} 65. Kh3 {[%emt 0:00:01]} e4 {[%emt 0:00:12]} 66. Rc1 {[%emt 0:00:02]} Bd5 {[%emt 0:00:26]} 67. Rc7 {[%emt 0:00:13]} g6 {[%emt 0:00:19]} 68. Rd7 {[%emt 0:00:02]} Ke6 {[%emt 0:00:11]} 69. Rd6+ {[%emt 0:00:02]} Kf7 {[%emt 0:00:09]} 70. Rxd5 {[%emt 0:00:00]} d3 {[%emt 0:00:05]} 71. Kg4 {[%emt 0:00:00]} Re8 {[%emt 0:00:21]} 72. Kf4 {[%emt 0:00:00]} e3 {[%emt 0:00:07]} 73. Rxd3 {[%emt 0:00:00]} e2 {[%emt 0:00:02]} 74. Be1 {[%emt 0:00:00]} Kf6 {[%emt 0:00:09]} 75. Re3 {[%emt 0:00:00]} Ra8 {[%emt 0:00:20]} 76. Bc3+ {[%emt 0:00:00]} Kf7 {[%emt 0:00:03]} 77. Rxe2 {[%emt 0:00:00]} Ra4+ {[%emt 0:00:09]} 78. Kg5 {[%emt 0:00:00]} Rc4 {[%emt 0:00:06]} 79. Rf2+ {[%emt 0:00:00]} Ke6 {[%emt 0:00:09]} 80. Bg7 {[%emt 0:00:00]} Ke7 {[%emt 0:00:10]} 81. h3 {[%emt 0:00:00]} Ra4 {[%emt 0:00:07]} 82. Kxg6 {[%emt 0:00:00]} Rxh4 {[%emt 0:00:02]} 83. Bf6+ {[%emt 0:00:00]} 1-0

[Event "Szansa Chess Open 2022"]
[Site "Warsaw"]
[Date "2022.09.17"]
[Round "2.8"]
[White "Khamidov, Abdulla"]
[Black "Psyk, Radoslaw"]
[Result "0-1"]
[ECO "B02"]
[WhiteElo "1804"]
[BlackElo "2404"]
[Annotator "ChessBase"]
[PlyCount "32"]
[EventDate "2022.09.17"]
[EventCountry "POL"]
[SourceTitle "playchess.com"]
[Source "ChessBase"]
[SourceQuality "1"]
[TimeControl "900+10"]

1. e4 {[%emt 0:00:04]} Nf6 {[%emt 0:00:03]} 2. Nc3 {[%emt 0:00:04]} d5 {[%emt 0:00:02]} 3. exd5 {[%emt 0:00:08]} Nxd5 {[%emt 0:00:02]} 4. Bb5+ {[%emt 0:00:03]} c6 {[%emt 0:00:18]} 5. Be2 {[%emt 0:00:02]} Bf5 {[%emt 0:00:43]} 6. d3 {[%emt 0:00:12]} Nd7 {[%emt 0:00:20]} 7. Nxd5 {[%emt 0:00:08]} cxd5 {[%emt 0:00:03]} 8. Nf3 {[%emt 0:00:03]} e6 {[%emt 0:01:48]} 9. O-O {[%emt 0:00:03]} Bd6 {[%emt 0:00:04]} 10. c4 {[%emt 0:00:23]} O-O 11. cxd5 exd5 12. Qb3 Nc5 13. Qd1 Re8 14. Be3 Ne6 15. g3 d4 16. Bd2 Qb6 0-1

[Event "Szansa Chess Open 2022"]
[Site "Warsaw"]
[Date "2022.09.17"]
[Round "2.9"]
[White "Jarmula, Lukasz"]
[Black "Kaczmarska, Joanna"]
[Result "1-0"]
[ECO "A80"]
[WhiteElo "2457"]
[BlackElo "1948"]
[Annotator "ChessBase"]
[PlyCount "85"]
[EventDate "2022.09.17"]
[EventCountry "POL"]
[SourceTitle "playchess.com"]
[Source "ChessBase"]
[SourceQuality "1"]
[TimeControl "900+10"]

1. d4 {[%emt 0:00:10]} f5 {[%emt 0:00:10]} 2. Nc3 {[%emt 0:00:04]} Nf6 {[%emt 0:00:05]} 3. Bg5 {[%emt 0:00:05]} d5 {[%emt 0:00:01]} 4. e3 {[%emt 0:00:02]} e6 {[%emt 0:00:24]} 5. Nf3 {[%emt 0:00:09]} h6 {[%emt 0:01:55]} 6. Bxf6 {[%emt 0:00:22]} Qxf6 {[%emt 0:00:03]} 7. Ne5 {[%emt 0:00:07]} h5 {[%emt 0:00:34]} 8. Be2 {[%emt 0:00:27]} g6 {[%emt 0:00:13]} 9. O-O {[%emt 0:00:05]} Nd7 {[%emt 0:00:22]} 10. Nb5 {[%emt 0:02:23]} Kd8 {[%emt 0:00:49]} 11. f4 {[%emt 0:00:10]} a6 {[%emt 0:00:10]} 12. Nc3 {[%emt 0:00:03]} Nxe5 {[%emt 0:02:16]} 13. dxe5 {[%emt 0:00:03]} Qf7 {[%emt 0:00:02]} 14. e4 {[%emt 0:00:33]} Bc5+ {[%emt 0:00:02]} 15. Kh1 {[%emt 0:00:03]} c6 {[%emt 0:00:03]} 16. Na4 {[%emt 0:00:34]} Ba7 {[%emt 0:00:16]} 17. exd5 {[%emt 0:00:13]} exd5 {[%emt 0:00:31]} 18. c4 {[%emt 0:00:03]} b5 {[%emt 0:01:18]} 19. cxd5 {[%emt 0:00:19]} bxa4 {[%emt 0:00:01]} 20. Bf3 {[%emt 0:01:19]} Qd7 {[%emt 0:01:39]} 21. d6 {[%emt 0:01:12]} Rb8 {[%emt 0:01:40]} 22. Re1 {[%emt 0:00:20]} Re8 {[%emt 0:00:45]} 23. Qxa4 {[%emt 0:00:16]} Rxb2 {[%emt 0:02:06]} 24. Qa5+ {[%emt 0:01:21]} Bb6 {[%emt 0:00:13]} 25. Qc3 {[%emt 0:00:03]} Rb5 {[%emt 0:00:29]} 26. Rad1 {[%emt 0:03:23]} Ba5 {[%emt 0:00:25]} 27. Qe3 {[%emt 0:00:27]} Bxe1 {[%emt 0:00:13]} 28. Qxe1 {[%emt 0:00:03]} Bb7 {[%emt 0:00:10]} 29. a4 {[%emt 0:00:24]} Rb3 {[%emt 0:00:30]} 30. Be2 {[%emt 0:00:24]} Re3 {[%emt 0:01:02]} 31. Qa5+ {[%emt 0:00:22]} Kc8 {[%emt 0:00:02]} 32. Bxa6 {[%emt 0:00:11]} Rb3 {[%emt 0:01:16]} 33. Bc4 {[%emt 0:00:06]} Rb2 {[%emt 0:00:14]} 34. Qc3 {[%emt 0:00:32]} Rb6 {[%emt 0:00:21]} 35. a5 {[%emt 0:00:08]} c5 {[%emt 0:00:25]} 36. axb6 {[%emt 0:00:11]} Rd8 {[%emt 0:00:10]} 37. Qa3 {[%emt 0:00:44]} Qc6 {[%emt 0:00:06]} 38. Be6+ {[%emt 0:00:16]} Rd7 {[%emt 0:00:00]} 39. Qg3 {[%emt 0:00:20]} Qa4 {[%emt 0:00:04]} 40. Rg1 {[%emt 0:00:23]} Bc6 {[%emt 0:00:25]} 41. Qxg6 {[%emt 0:00:16]} h4 {[%emt 0:00:03]} 42. Bxd7+ {[%emt 0:00:19]} Kxd7 {[%emt 0:00:18]} 43. Qf7+ {[%emt 0:00:02]} 1-0